fUST/lending_fUST_20250819
["ID","MTS","AMOUNT","RATE_DAILY","PERIOD"]
[380227255,1755618634294,-480.0,0.00019178,2]
[380227258,1755618634304,-480.0,0.00019178,2]
[380227260,1755618634313,-480.0,0.00019178,2]
[380227262,1755618634326,-480.0,0.00019178,2]
[380227264,1755618634336,-462.90498832,0.00019178,2]
[380227266,1755618634346,-480.0,0.00019178,2]
[380227268,1755618634356,-480.0,0.00019178,2]
[380227270,1755618634366,-480.0,0.00019178,2]
[380227272,1755618634376,-461.14486151,0.00019178,2]
[380227274,1755618634385,-480.0,0.00019178,2]
[380227276,1755618634395,-480.0,0.00019178,2]
[380227278,1755618634405,-462.1237991,0.00019178,2]
[380227280,1755618634416,-480.0,0.00019178,2]
[380227282,1755618634426,-480.0,0.00019178,2]
[380227284,1755618634435,-460.0,0.00019178,2]
[380227286,1755618634444,-824.41,0.00019178,2]
[380227287,1755618634454,-480.0,0.00019178,2]
[380227289,1755618634464,-480.0,0.00019178,2]
[380227291,1755618634473,-480.0,0.00019178,2]
[380227293,1755618634484,-480.0,0.00019178,2]
[380227296,1755618634494,-300.0,0.00019178,2]
[380227298,1755618634504,-461.02656491,0.00019178,2]
[380227300,1755618634514,-480.0,0.00019178,2]
[380227302,1755618634523,-480.0,0.00019178,2]
[380227304,1755618634534,-480.0,0.00019178,2]
[380227305,1755618634544,-480.0,0.00019178,2]
[380227308,1755618634554,-480.0,0.00019178,2]
[380227309,1755618634564,-480.0,0.00019178,2]
[380227310,1755618634578,-460.88117614,0.00019178,2]
[380227311,1755618634588,-480.0,0.00019178,2]
[380227312,1755618634598,-480.0,0.00019178,2]
[380227313,1755618634608,-480.0,0.00019178,2]
[380227314,1755618634618,-480.0,0.00019178,2]
[380227315,1755618634628,-480.0,0.00019178,2]
[380227316,1755618634638,-480.0,0.00019178,2]
[380227317,1755618634647,-480.0,0.00019178,2]
[380227318,1755618634658,-368.97223771,0.00019178,2]
[380227319,1755618634668,-480.0,0.00019178,2]
[380227321,1755618634678,-480.0,0.00019178,2]
[380227322,1755618634688,-480.0,0.00019178,2]
[380227323,1755618634698,-463.4591486,0.00019178,2]
[380227324,1755618634707,-461.98997468,0.00019178,2]
[380227325,1755618634717,-461.38941649,0.00019178,2]
[380227326,1755618634727,-480.0,0.00019178,2]
[380227327,1755618634737,-460.81983627,0.00019178,2]
[380227328,1755618634747,-461.336506,0.00019178,2]
[380227329,1755618634757,-480.0,0.00019178,2]
[380227330,1755618634770,-460.0,0.00019178,2]
[380227331,1755618634780,-460.48870533,0.00019178,2]
[380227332,1755618634790,-420.64177241,0.00019178,2]
[380227333,1755618634800,-480.0,0.00019178,2]
[380227334,1755618634811,-389.82296434,0.00019178,2]
[380227335,1755618634823,-489.17,0.00019178,2]
[380227336,1755618634833,-480.0,0.00019178,2]
[380227337,1755618634845,-509.86,0.00019178,2]
[380227338,1755618634855,-460.84134675,0.00019178,2]
[380227339,1755618634864,-381.51137534,0.00019178,2]
[380227340,1755618634873,-480.0,0.00019178,2]
[380227341,1755618634883,-548.22,0.00019178,2]
[380227342,1755618634892,-480.0,0.00019178,2]
[380227343,1755618634902,-480.0,0.00019178,2]
[380227344,1755618634911,-480.0,0.00019178,2]
[380227345,1755618634920,-480.0,0.00019178,2]
[380227346,1755618634930,-520.07,0.00019178,2]
[380227347,1755618634939,-480.0,0.00019178,2]
[380227348,1755618634949,-480.0,0.00019178,2]
[380227349,1755618634959,-460.67401177,0.00019178,2]
[380227350,1755618634969,-461.8991438,0.00019178,2]
[380227351,1755618634979,-461.03418815,0.00019178,2]
[380227352,1755618634988,-460.52114727,0.00019178,2]
[380227353,1755618634998,-461.91133845,0.00019178,2]
[380227354,1755618635008,-464.6771756,0.00019178,2]
[380227355,1755618635022,-1198.36,0.00019178,2]
[380227356,1755618635034,-480.0,0.00019178,2]
[380227357,1755618635044,-460.0,0.00019178,2]
[380227358,1755618635054,-480.0,0.00019178,2]
[380227359,1755618635063,-500.0,0.00019178,2]
[380227360,1755618635075,-480.0,0.00019178,2]
[380227361,1755618635085,-293.53,0.00019178,2]
[380227362,1755618635094,-480.0,0.00019178,2]
[380227363,1755618635104,-456.86622063,0.00019178,2]
[380227364,1755618635113,-480.0,0.00019178,2]
[380227365,1755618635123,-461.43248746,0.00019178,2]
[380227366,1755618635132,-480.0,0.00019178,2]
[380227367,1755618635142,-480.0,0.00019178,2]
[380227368,1755618635152,-461.79105021,0.00019178,2]
[380227369,1755618635162,-420.0,0.00019178,2]
[380227370,1755618635171,-453.09686162,0.00019178,2]
[380227371,1755618635181,-366.57930491,0.00019178,2]
[380227372,1755618635192,-480.0,0.00019178,2]
[380227373,1755618635202,-480.0,0.00019178,2]
[380227374,1755618635213,-480.0,0.00019178,2]
[380227375,1755618635223,-480.0,0.00019178,2]
[380227376,1755618635233,-460.72218901,0.00019178,2]
[380227377,1755618635244,-480.0,0.00019178,2]
[380227378,1755618635253,-480.0,0.00019178,2]
[380227379,1755618635264,-480.0,0.00019178,2]
[380227380,1755618635274,-465.81582577,0.00019178,2]
[380227381,1755618635284,-480.0,0.00019178,2]
[380227382,1755618635294,-480.0,0.00019178,2]
[380227383,1755618635305,-1089.51,0.00019178,2]
[380227384,1755618635314,-480.0,0.00019178,2]
[380227385,1755618635331,-543.75,0.00019178,2]
[380227386,1755618635340,-480.0,0.00019178,2]
[380227387,1755618635350,-480.0,0.00019178,2]
[380227388,1755618635360,-480.0,0.00019178,2]
[380227389,1755618635370,-1866.23,0.00019178,2]
[380227390,1755618635380,-480.0,0.00019178,2]
[380227391,1755618635389,-480.0,0.00019178,2]
[380227392,1755618635399,-480.0,0.00019178,2]
[380227393,1755618635408,-480.0,0.00019178,2]
[380227394,1755618635418,-808.6,0.00019178,2]
[380227395,1755618635428,-461.16710078,0.00019178,2]
[380227396,1755618635438,-1534.07,0.00019178,2]
[380227397,1755618635448,-480.0,0.00019178,2]
[380227398,1755618635457,-782.67,0.00019178,2]
[380227399,1755618635468,-460.0,0.00019178,2]
[380227400,1755618635478,-480.0,0.00019178,2]
[380227401,1755618635487,-480.0,0.00019178,2]
[380227402,1755618635497,-480.0,0.00019178,2]
[380227403,1755618635507,-2156.47,0.00019178,2]
[380227404,1755618635516,-480.0,0.00019178,2]
[380227405,1755618635526,-850.8,0.00019178,2]
[380227406,1755618635535,-533.17,0.00019178,2]
[380227407,1755618635545,-462.31573255,0.00019178,2]
[380227408,1755618635555,-480.0,0.00019178,2]
[380227409,1755618635565,-480.0,0.00019178,2]
[380227410,1755618635578,-480.0,0.00019178,2]
[380227411,1755618635588,-460.0,0.00019178,2]
[380227412,1755618635598,-480.0,0.00019178,2]
[380227413,1755618635607,-481.74934585,0.00019178,2]
[380227414,1755618635617,-480.0,0.00019178,2]
[380227415,1755618635627,-480.0,0.00019178,2]
[380227416,1755618635637,-480.0,0.00019178,2]
[380227417,1755618635647,-480.0,0.00019178,2]
[380227418,1755618635656,-480.0,0.00019178,2]
[380227419,1755618635666,-1568.73,0.00019178,2]
[380227420,1755618635676,-480.0,0.00019178,2]
[380227421,1755618635685,-480.0,0.00019178,2]
[380227422,1755618635695,-480.0,0.00019178,2]
[380227423,1755618635705,-480.0,0.00019178,2]
[380227424,1755618635714,-460.0,0.00019178,2]
[380227425,1755618635723,-480.0,0.00019178,2]
[380227426,1755618635733,-480.0,0.00019178,2]
[380227427,1755618635742,-480.0,0.00019178,2]
[380227428,1755618635751,-460.0,0.00019178,2]
[380227429,1755618635765,-480.0,0.00019178,2]
[380227430,1755618635775,-480.0,0.00019178,2]
[380227431,1755618635785,-480.0,0.00019178,2]
[380227432,1755618635794,-460.0,0.00019178,2]
[380227433,1755618635805,-461.4346182,0.00019178,2]
[380227434,1755618635814,-462.00150624,0.00019178,2]
[380227435,1755618635827,-440.0,0.00019178,2]
[380227436,1755618635836,-480.0,0.00019178,2]
[380227437,1755618635847,-480.0,0.00019178,2]
[380227438,1755618635857,-480.0,0.00019178,2]
[380227439,1755618635866,-480.0,0.00019178,2]
[380227440,1755618635875,-480.0,0.00019178,2]
[380227441,1755618635884,-480.0,0.00019178,2]
[380227442,1755618635893,-460.0,0.00019178,2]
[380227443,1755618635903,-480.0,0.00019178,2]
[380227444,1755618635912,-505.83,0.00019178,2]
[380227445,1755618635921,-461.181246,0.00019178,2]
[380227446,1755618635931,-480.0,0.00019178,2]
[380227447,1755618635940,-481.44539575,0.00019178,2]
[380227448,1755618635949,-460.0,0.00019178,2]
[380227449,1755618635959,-480.0,0.00019178,2]
[380227450,1755618635969,-480.0,0.00019178,2]
[380227451,1755618635978,-213.08212822,0.00019178,2]
[380227452,1755618635988,-460.0,0.00019178,2]
[380227453,1755618635997,-489.77,0.00019178,2]
[380227454,1755618636007,-470.01634491,0.00019178,2]
[380227455,1755618636017,-480.0,0.00019178,2]
[380227456,1755618636027,-480.0,0.00019178,2]
[380227457,1755618636037,-480.0,0.00019178,2]
[380227458,1755618636047,-460.0,0.00019178,2]
[380227459,1755618636056,-480.0,0.00019178,2]
[380227460,1755618636066,-461.20056579,0.00019178,2]
[380227461,1755618636077,-480.0,0.00019178,2]
[380227462,1755618636086,-460.45281025,0.00019178,2]
[380227463,1755618636095,-598.49076454,0.00019178,2]
[380227464,1755618636104,-480.0,0.00019178,2]
[380227465,1755618636114,-480.0,0.00019178,2]
[380227466,1755618636123,-480.0,0.00019178,2]
[380227467,1755618636133,-480.0,0.00019178,2]
[380227468,1755618636142,-480.0,0.00019178,2]
[380227469,1755618636152,-480.0,0.00019178,2]
[380227470,1755618636161,-460.0,0.00019178,2]
[380227471,1755618636171,-480.0,0.00019178,2]
[380227472,1755618636180,-480.0,0.00019178,2]
[380227473,1755618636190,-480.0,0.00019178,2]
[380227474,1755618636200,-480.0,0.00019178,2]
[380227475,1755618636210,-6454.08,0.00019178,2]
[380227476,1755618636220,-463.97197328,0.00019178,2]
[380227477,1755618636229,-8244.61,0.00019178,2]
[380227478,1755618636239,-460.16739173,0.00019178,2]
[380227479,1755618636249,-480.0,0.00019178,2]
[380227480,1755618636259,-588.36183101,0.00019178,2]
[380227481,1755618636269,-480.0,0.00019178,2]
[380227482,1755618636278,-480.0,0.00019178,2]
[380227483,1755618636288,-480.0,0.00019178,2]
[380227484,1755618636298,-659.66,0.00019178,2]
[380227485,1755618636308,-480.0,0.00019178,2]
[380227486,1755618636318,-594.02410839,0.00019178,2]
[380227487,1755618636330,-976.04,0.00019178,2]
[380227488,1755618636341,-480.0,0.00019178,2]
[380227489,1755618636351,-460.67143711,0.00019178,2]
[380227490,1755618636362,-461.48171064,0.00019178,2]
[380227491,1755618636372,-625.16,0.00019178,2]
[380227492,1755618636382,-480.0,0.00019178,2]
[380227493,1755618636391,-480.0,0.00019178,2]
[380227494,1755618636401,-480.0,0.00019178,2]
[380227495,1755618636411,-480.0,0.00019178,2]
[380227496,1755618636421,-547.61,0.00019178,2]
[380227497,1755618636430,-480.0,0.00019178,2]
[380227498,1755618636440,-460.0,0.00019178,2]
[380227499,1755618636449,-480.0,0.00019178,2]
[380227500,1755618636459,-604.27,0.00019178,2]
[380227501,1755618636469,-464.17028739,0.00019178,2]
[380227502,1755618636479,-480.0,0.00019178,2]
[380227503,1755618636488,-480.0,0.00019178,2]
[380227504,1755618636498,-747.0,0.00019178,2]
[380227505,1755618636508,-461.9390523,0.00019178,2]
[380227506,1755618636519,-480.0,0.00019178,2]
[380227507,1755618636529,-480.0,0.00019178,2]
[380227508,1755618636539,-460.87160496,0.00019178,2]
[380227509,1755618636549,-480.0,0.00019178,2]
[380227510,1755618636559,-461.1877635,0.00019178,2]
[380227511,1755618636568,-480.0,0.00019178,2]
[380227512,1755618636582,-480.0,0.00019178,2]
[380227513,1755618636591,-480.0,0.00019178,2]
[380227514,1755618636601,-480.0,0.00019178,2]
[380227515,1755618636611,-480.0,0.00019178,2]
[380227516,1755618636621,-480.0,0.00019178,2]
[380227517,1755618636630,-541.36019682,0.00019178,2]
[380227518,1755618636639,-800.68,0.00019178,2]
[380227519,1755618636648,-452.25592495,0.00019178,2]
[380227546,1755618639039,-329.74,0.00019168,3]
[380227547,1755618639050,-27.74407505,0.00019178,2]
[380227548,1755618639060,-480.0,0.00019178,2]
[380227549,1755618639070,-480.0,0.00019178,2]
[380227550,1755618639083,-462.04784653,0.00019178,2]
[380227551,1755618639094,-375.10880713,0.00019178,2]
[380227552,1755618639104,-480.0,0.00019178,2]
[380227553,1755618639114,-480.0,0.00019178,2]
[380227554,1755618639124,-547.63,0.00019178,2]
[380227555,1755618639135,-461.70575592,0.00019178,2]
[380227556,1755618639145,-460.0,0.00019178,2]
[380227557,1755618639156,-480.0,0.00019178,2]
[380227558,1755618639166,-480.0,0.00019178,2]
[380227559,1755618639177,-462.7161223,0.00019178,2]
[380227560,1755618639187,-480.0,0.00019178,2]
[380227561,1755618639197,-600.77378616,0.00019178,2]
[380227562,1755618639208,-480.0,0.00019178,2]
[380227563,1755618639218,-481.92907591,0.00019178,2]
[380227564,1755618639228,-4382.0039307,0.00019178,2]
[380227565,1755618639240,-1549.77328159,0.00019178,2]
[380227566,1755618639252,-672.673883,0.00019178,2]
[380227567,1755618639265,-2803.26890471,0.00019178,2]
[380227568,1755618639275,-830.84,0.00019178,2]
[380227569,1755618639285,-480.0,0.00019178,2]
[380227570,1755618639296,-380.84152227,0.00019178,2]
[380227571,1755618639307,-480.0,0.00019178,2]
[380227572,1755618639317,-460.0,0.00019178,2]
[380227573,1755618639330,-340.73170207,0.00019178,2]
[380227574,1755618639340,-480.0,0.00019178,2]
[380227575,1755618639350,-480.0,0.00019178,2]
[380227576,1755618639360,-460.0,0.00019178,2]
[380227577,1755618639370,-480.0,0.00019178,2]
[380227578,1755618639381,-480.0,0.00019178,2]
[380227579,1755618639391,-463.36002261,0.00019178,2]
[380227580,1755618639402,-480.0,0.00019178,2]
[380227581,1755618639412,-480.0,0.00019178,2]
[380227582,1755618639422,-480.0,0.00019178,2]
[380227583,1755618639432,-480.0,0.00019178,2]
[380227584,1755618639442,-460.87845877,0.00019178,2]
[380227585,1755618639452,-460.98756696,0.00019178,2]
[380227586,1755618639462,-480.0,0.00019178,2]
[380227587,1755618639472,-198.52985664,0.00019178,2]
[380227588,1755618639482,-480.0,0.00019178,2]
[380227589,1755618639492,-544.61,0.00019178,2]
[380227590,1755618639502,-480.0,0.00019178,2]
[380227591,1755618639512,-480.0,0.00019178,2]
[380227592,1755618639522,-502.17,0.00019178,2]
[380227593,1755618639532,-480.0,0.00019178,2]
[380227594,1755618639542,-480.0,0.00019178,2]
[380227595,1755618639552,-480.0,0.00019178,2]
[380227596,1755618639562,-480.0,0.00019178,2]
[380227597,1755618639572,-1037.36,0.00019178,2]
[380227598,1755618639585,-480.0,0.00019178,2]
[380227599,1755618639595,-480.0,0.00019178,2]
[380227600,1755618639604,-480.0,0.00019178,2]
[380227601,1755618639614,-480.0,0.00019178,2]
[380227603,1755618639624,-742.49,0.00019178,2]
[380227604,1755618639634,-461.52773054,0.00019178,2]
[380227605,1755618639646,-480.0,0.00019178,2]
[380227606,1755618639656,-463.27744396,0.00019178,2]
[380227608,1755618639665,-480.0,0.00019178,2]
[380227609,1755618639675,-1301.12679147,0.00019178,2]
[380227610,1755618639688,-242.62320853,0.00019178,2]
[380227611,1755618639698,-480.0,0.00019178,2]
[380227612,1755618639708,-489.86645983,0.00019178,2]
[380227613,1755618639717,-480.0,0.00019178,2]
[380227614,1755618639727,-480.0,0.00019178,2]
[380227615,1755618639737,-480.0,0.00019178,2]
[380227616,1755618639747,-480.0,0.00019178,2]
[380227617,1755618639758,-480.0,0.00019178,2]
[380227618,1755618639771,-480.0,0.00019178,2]
[380227619,1755618639781,-480.0,0.00019178,2]
[380227620,1755618639791,-480.0,0.00019178,2]
[380227621,1755618639801,-480.0,0.00019178,2]
[380227622,1755618639812,-460.71526313,0.00019178,2]
[380227623,1755618639821,-480.0,0.00019178,2]
[380227624,1755618639834,-1344.35,0.00019178,2]
[380227625,1755618639845,-480.0,0.00019178,2]
[380227626,1755618639855,-2717.77,0.00019178,2]
[380227627,1755618639866,-466.57483543,0.00019178,2]
[380227628,1755618639876,-1307.59,0.00019178,2]
[380227629,1755618639886,-1327.62,0.00019178,2]
[380227630,1755618639896,-480.0,0.00019178,2]
[380227631,1755618639905,-480.0,0.00019178,2]
[380227632,1755618639915,-480.0,0.00019178,2]
[380227633,1755618639925,-462.47393229,0.00019178,2]
[380227634,1755618639936,-480.0,0.00019178,2]
[380227635,1755618639946,-480.0,0.00019178,2]
[380227636,1755618639956,-595.01,0.00019178,2]
[380227637,1755618639965,-961.07,0.00019178,2]
[380227638,1755618639975,-1261.24,0.00019178,2]
[380227639,1755618639985,-1125.26,0.00019178,2]
[380227640,1755618639995,-480.0,0.00019178,2]
[380227641,1755618640004,-480.0,0.00019178,2]
[380227642,1755618640014,-480.0,0.00019178,2]
[380227643,1755618640024,-480.0,0.00019178,2]
[380227644,1755618640035,-460.48092844,0.00019178,2]
[380227645,1755618640045,-480.0,0.00019178,2]
[380227646,1755618640055,-640.29,0.00019178,2]
[380227647,1755618640065,-460.41214039,0.00019178,2]
[380227648,1755618640075,-480.0,0.00019178,2]
[380227649,1755618640085,-241.44528323,0.00019178,2]
[380227650,1755618640097,-238.55471677,0.00019178,2]
[380227651,1755618640107,-480.0,0.00019178,2]
[380227652,1755618640117,-480.0,0.00019178,2]
[380227654,1755618640127,-480.0,0.00019178,2]
[380227656,1755618640136,-480.0,0.00019178,2]
[380227657,1755618640146,-460.98465797,0.00019178,2]
[380227658,1755618640155,-480.0,0.00019178,2]
[380227659,1755618640164,-480.0,0.00019178,2]
[380227660,1755618640174,-836.41,0.00019178,2]
[380227661,1755618640183,-480.0,0.00019178,2]
[380227662,1755618640192,-480.0,0.00019178,2]
[380227663,1755618640201,-587.75,0.00019178,2]
[380227664,1755618640211,-481.40968839,0.00019178,2]
[380227665,1755618640220,-480.0,0.00019178,2]
[380227666,1755618640230,-502.07,0.00019178,2]
[380227667,1755618640239,-1137.61,0.00019178,2]
[380227669,1755618640249,-460.0,0.00019178,2]
[380227671,1755618640258,-954.51,0.00019178,2]
[380227673,1755618640267,-1343.33,0.00019178,2]
[380227674,1755618640277,-480.0,0.00019178,2]
[380227676,1755618640286,-480.0,0.00019178,2]
[380227677,1755618640297,-480.0,0.00019178,2]
[380227678,1755618640307,-947.83,0.00019178,2]
[380227679,1755618640317,-480.0,0.00019178,2]
[380227680,1755618640329,-480.0,0.00019178,2]
[380227681,1755618640339,-480.0,0.00019178,2]
[380227682,1755618640348,-602.28,0.00019178,2]
[380227683,1755618640358,-480.0,0.00019178,2]
[380227684,1755618640368,-480.0,0.00019178,2]
[380227685,1755618640378,-480.0,0.00019178,2]
[380227686,1755618640388,-524.82,0.00019178,2]
[380227687,1755618640398,-262.44093691,0.00019178,2]
[380227688,1755618640410,-221.23906309,0.00019178,2]
[380227689,1755618640420,-480.0,0.00019178,2]
[380227690,1755618640430,-500.0,0.00019178,2]
[380227691,1755618640439,-500.0,0.00019178,2]
[380227692,1755618640449,-420.0,0.00019178,2]
[380227693,1755618640459,-552.34,0.00019178,2]
[380227694,1755618640468,-480.0,0.00019178,2]
[380227695,1755618640478,-480.0,0.00019178,2]
[380227696,1755618640487,-464.59410683,0.00019178,2]
[380227697,1755618640498,-500.07,0.00019178,2]
[380227698,1755618640507,-480.0,0.00019178,2]
[380227699,1755618640517,-460.85599515,0.00019178,2]
[380227700,1755618640526,-2567.09424549,0.00019178,2]
[380227701,1755618640550,-19.65575451,0.00019178,2]
[380227702,1755618640560,-189.79906775,0.00019178,2]
[380227703,1755618640570,-999.92,0.00019178,2]
[380227704,1755618640581,-480.0,0.00019178,2]
[380227705,1755618640591,-480.0,0.00019178,2]
[380227706,1755618640600,-460.0,0.00019178,2]
[380227707,1755618640609,-459.6853394,0.00019178,2]
[380227708,1755618640619,-480.0,0.00019178,2]
[380227709,1755618640628,-480.0,0.00019178,2]
[380227710,1755618640638,-480.0,0.00019178,2]
[380227711,1755618640648,-480.0,0.00019178,2]
[380227712,1755618640658,-480.0,0.00019178,2]
[380227713,1755618640668,-3164.0,0.00019178,2]
[380227714,1755618640678,-569.41,0.00019178,2]
[380227715,1755618640688,-480.0,0.00019178,2]
[380227716,1755618640698,-537.91810537,0.00019178,2]
[380227717,1755618640707,-762.55,0.00019178,2]
[380227718,1755618640717,-480.0,0.00019178,2]
[380227719,1755618640727,-499.34514473,0.00019178,2]
[380227720,1755618640737,-480.0,0.00019178,2]
[380227721,1755618640747,-480.0,0.00019178,2]
[380227722,1755618640759,-480.0,0.00019178,2]
[380227723,1755618640769,-480.0,0.00019178,2]
[380227724,1755618640781,-480.0,0.00019178,2]
[380227725,1755618640790,-480.0,0.00019178,2]
[380227726,1755618640799,-480.0,0.00019178,2]
[380227727,1755618640810,-480.0,0.00019178,2]
[380227728,1755618640819,-1158.3,0.00019178,2]
[380227729,1755618640829,-460.0,0.00019178,2]
[380227730,1755618640839,-480.0,0.00019178,2]
[380227731,1755618640848,-480.0,0.00019178,2]
[380227732,1755618640858,-480.0,0.00019178,2]
[380227733,1755618640867,-480.0,0.00019178,2]
[380227734,1755618640876,-461.12699431,0.00019178,2]
[380227735,1755618640885,-542.00091212,0.00019178,2]
[380227736,1755618640895,-480.0,0.00019178,2]
[380227737,1755618640905,-480.0,0.00019178,2]
[380227738,1755618640914,-480.0,0.00019178,2]
[380227739,1755618640923,-769.12,0.00019178,2]
[380227740,1755618640933,-480.0,0.00019178,2]
[380227741,1755618640944,-1823.15,0.00019178,2]
[380227742,1755618640953,-480.0,0.00019178,2]
[380227743,1755618640963,-480.0,0.00019178,2]
[380227744,1755618640972,-1160.5,0.00019178,2]
[380227745,1755618640982,-460.0,0.00019178,2]
[380227746,1755618640991,-480.0,0.00019178,2]
[380227747,1755618641000,-480.0,0.00019178,2]
[380227748,1755618641010,-480.0,0.00019178,2]
[380227749,1755618641019,-480.0,0.00019178,2]
[380227750,1755618641028,-460.0,0.00019178,2]
[380227751,1755618641038,-480.0,0.00019178,2]
[380227752,1755618641048,-935.01,0.00019178,2]
[380227753,1755618641057,-480.0,0.00019178,2]
[380227754,1755618641067,-1886.12,0.00019178,2]
[380227755,1755618641078,-480.40167658,0.00019178,2]
[380227756,1755618641088,-480.0,0.00019178,2]
[380227757,1755618641097,-480.0,0.00019178,2]
[380227758,1755618641107,-480.0,0.00019178,2]
[380227759,1755618641116,-480.0,0.00019178,2]
[380227760,1755618641126,-480.0,0.00019178,2]
[380227761,1755618641136,-480.0,0.00019178,2]
[380227762,1755618641145,-480.0,0.00019178,2]
[380227763,1755618641155,-480.0,0.00019178,2]
[380227764,1755618641165,-6469.37,0.00019178,2]
[380227765,1755618641174,-528.62,0.00019178,2]
[380227766,1755618641183,-480.0,0.00019178,2]
[380227767,1755618641193,-500.0,0.00019178,2]
[380227768,1755618641203,-2017.71113297,0.00019178,2]
[380227769,1755618641212,-3000.0,0.000192,2]
[380227770,1755618641222,-2264.71755116,0.00019284,2]
[380227771,1755618641231,-967.45612499,0.00019452,2]
[380227772,1755618641240,-480.0,0.00019452,2]
[380227773,1755618641250,-480.0,0.00019452,2]
[380227774,1755618641260,-1576.07,0.00019452,2]
[380227775,1755618641269,-480.0,0.00019452,2]
[380227776,1755618641278,-480.0,0.00019452,2]
[380227777,1755618641287,-480.0,0.00019452,2]
[380227778,1755618641296,-461.50952646,0.00019452,2]
[380227779,1755618641306,-327.42410537,0.00019452,2]
[380227780,1755618641315,-460.0,0.00019452,2]
[380227781,1755618641328,-367.28583119,0.00019452,2]
[380227782,1755618641337,-430.95675496,0.00019452,2]
[380227783,1755618641347,-440.0,0.00019452,2]
[380227784,1755618641356,-460.0,0.00019452,2]
[380227785,1755618641366,-480.0,0.00019452,2]
[380227786,1755618641376,-480.0,0.00019452,2]
[380227787,1755618641385,-480.0,0.00019452,2]
[380227788,1755618641395,-563.95783819,0.00019452,2]
[380227789,1755618641404,-462.07250017,0.00019452,2]
[380227790,1755618641414,-462.84227019,0.00019452,2]
[380227791,1755618641423,-480.0,0.00019452,2]
[380227792,1755618641434,-480.0,0.00019452,2]
[380227793,1755618641443,-480.0,0.00019452,2]
[380227794,1755618641453,-480.0,0.00019452,2]
[380227795,1755618641463,-460.0,0.00019452,2]
[380227796,1755618641473,-460.0,0.00019452,2]
[380227797,1755618641482,-480.0,0.00019452,2]
[380227798,1755618641491,-462.10609292,0.00019452,2]
[380227799,1755618641503,-460.0,0.00019452,2]
[380227800,1755618641512,-480.0,0.00019452,2]
[380227801,1755618641522,-480.0,0.00019452,2]
[380227802,1755618641531,-2883.4,0.00019452,2]
[380227803,1755618641540,-480.0,0.00019452,2]
[380227804,1755618641549,-561.05100141,0.00019452,2]
[380227805,1755618641558,-480.0,0.00019452,2]
[380227806,1755618641568,-480.0,0.00019452,2]
[380227807,1755618641580,-460.0,0.00019452,2]
[380227808,1755618641591,-480.0,0.00019452,2]
[380227809,1755618641600,-480.0,0.00019452,2]
[380227810,1755618641609,-480.0,0.00019452,2]
[380227811,1755618641619,-203.5122005,0.00019452,2]
[380227812,1755618641628,-480.0,0.00019452,2]
[380227813,1755618641638,-480.0,0.00019452,2]
[380227814,1755618641647,-480.0,0.00019452,2]
[380227815,1755618641657,-480.0,0.00019452,2]
[380227816,1755618641667,-480.0,0.00019452,2]